bitfinex/quotes_SOLUSD_20250207
["timestamp","ask_amount","ask_price","bid_price","bid_amount"]
[1738887019346,31.42162153,191.1,191.09,0.03]
[1738887019526,26.25413246,191.13,191.09,0.03]
[1738887019729,26.25413246,191.12,191.09,0.03]
[1738887019926,26.25413246,191.11,191.09,0.03]
[1738887020353,26.25413246,191.1,191.09,0.03]
[1738887020929,0.37647,191.09,191.05,0.03]
[1738887021266,30.81770246,191.06,191.05,0.03]
[1738887022950,26.25413246,191.06,191.05,0.03]
[1738887023131,26.25413246,191.07,191.05,0.03]
[1738887023728,35.80216951,191.09,191.05,0.03]
[1738887023933,33.15720246,191.1,191.05,0.03]
[1738887024145,30.44043246,191.1,191.05,0.03]
[1738887024634,4.1863,191.1,191.05,0.03]
[1738887025154,26.25413246,191.16,191.09,26.25413246]
[1738887025354,26.25413246,191.17,191.1,26.25413246]
[1738887027652,26.25413246,191.18,191.11,26.25413246]
[1738887027961,30.43833246,191.2,191.12,26.25413246]
[1738887028257,0.063,191.18,191.13,26.25413246]
[1738887032266,0.063,191.18,191.09,0.03]
[1738887032267,26.25413246,191.14,191.09,0.03]
[1738887032566,26.25413246,191.11,191.09,0.03]
[1738887032768,0.063,191.18,191.09,25.263]
[1738887033862,26.69360246,191.18,191.1,26.25413246]
[1738887034059,0.063,191.18,191.12,26.25413246]
[1738887034263,0.063,191.18,191.13,26.25413246]
[1738887035243,0.063,191.18,191.15,26.25413246]
[1738887036467,0.063,191.18,191.15,31.48543246]
[1738887037146,0.063,191.18,191.17,46.25413246]
[1738887037472,0.0001,191.18,191.17,46.64561836]
[1738887037866,0.0001,191.18,191.17,46.25413246]
[1738887038376,0.0001,191.18,191.17,51.87669715]
[1738887038978,0.0001,191.18,191.17,51.48503246]
[1738887039468,0.0001,191.18,191.17,25.2309]
[1738887039773,0.0001,191.18,191.17,51.48503246]
[1738887042160,0.0001,191.18,191.15,26.25413246]
[1738887042474,0.0001,191.18,191.11,1.33745286]
[1738887042475,0.0001,191.18,191.13,26.25413246]
[1738887042676,0.0001,191.18,191.16,26.25413246]
[1738887042979,0.0001,191.18,191.17,26.25413246]
[1738887043874,0.0001,191.18,191.17,31.48503246]
[1738887052275,0.0001,191.18,191.17,31.51503246]
[1738887053286,0.063,191.24,191.21,20.0]
[1738887053492,0.063,191.29,191.28,26.25413246]
[1738887054265,0.063,191.29,191.25,26.25413246]
[1738887055079,0.063,191.29,191.24,5.2288]
[1738887055376,0.063,191.29,191.24,31.48293246]
[1738887055684,0.063,191.29,191.26,26.25413246]
[1738887056788,0.063,191.29,191.28,46.25413246]
[1738887058286,0.0001,191.29,191.28,46.64440517]
[1738887058593,0.0001,191.29,191.28,93.53828616]
[1738887058778,0.0001,191.29,191.28,95.16938616]
[1738887059600,0.063,191.37,191.32,1.0]
[1738887059774,0.063,191.37,191.36,26.25413246]
[1738887060599,0.063,191.37,191.36,31.47983246]
[1738887061794,0.063,191.44,191.39,20.0]
[1738887061989,0.063,191.44,191.43,26.25413246]
[1738887062777,1.86295,191.54,191.46,20.0]
[1738887062988,0.31325,191.54,191.51,26.25413246]
[1738887063185,0.31325,191.54,191.53,26.25413246]
[1738887063503,0.31325,191.54,191.52,26.25413246]
[1738887063803,0.31325,191.54,191.53,26.25413246]
[1738887064411,0.31325,191.54,191.52,26.25413246]
[1738887064573,0.31325,191.54,191.53,26.25413246]
[1738887065205,0.31325,191.54,191.51,26.25413246]
[1738887065505,0.31325,191.54,191.52,26.25413246]
[1738887065672,0.31325,191.54,191.53,26.25413246]
[1738887066574,0.31325,191.54,191.53,31.47523246]
[1738887070375,0.31325,191.54,191.53,26.25413246]
[1738887070701,0.31325,191.54,191.51,26.25413246]
[1738887070906,0.31325,191.54,191.48,20.0]
[1738887071106,0.31325,191.54,191.5,1.0]
[1738887071273,0.31325,191.54,191.53,20.0]
[1738887071772,7.7714,191.64,191.53,47.64178414]
[1738887072081,7.7714,191.64,191.6,26.25413246]
[1738887072795,6.1132,191.64,191.61,26.25413246]
[1738887072986,6.3065,191.69,191.62,26.25413246]
[1738887073499,6.3065,191.69,191.64,5.2181]
[1738887073870,6.3065,191.69,191.64,31.47223246]
[1738887074287,26.25413246,191.71,191.64,31.47223246]
[1738887074493,26.25413246,191.71,191.64,5.2181]
[1738887075510,26.25413246,191.71,191.64,26.25413246]
[1738887075807,0.37647,191.71,191.64,26.25413246]
[1738887076379,26.25413246,191.7,191.63,46.25413246]
[1738887076574,26.25413246,191.7,191.62,31.47253246]
[1738887076780,26.25413246,191.7,191.63,26.25413246]
[1738887077605,30.86660246,191.71,191.64,26.25413246]
[1738887077977,0.43947,191.71,191.64,26.25413246]
[1738887078290,30.86650246,191.71,191.64,26.25413246]
[1738887079202,26.25413246,191.7,191.63,51.47233246]
[1738887079602,0.37647,191.69,191.61,26.25413246]
[1738887079802,26.25413246,191.65,191.57,26.25413246]
[1738887079982,26.25413246,191.64,191.56,26.25413246]
[1738887080182,26.25413246,191.64,191.56,31.47433246]
[1738887080978,26.25413246,191.58,191.51,26.25413246]
[1738887081188,26.25413246,191.57,191.5,26.25413246]
[1738887081400,33.25403851,191.63,191.55,26.25413246]
[1738887081601,6.021,191.63,191.57,26.25413246]
[1738887082008,0.37647,191.62,191.55,26.25413246]
[1738887082212,26.25413246,191.61,191.54,26.25413246]
[1738887082881,26.25413246,191.61,191.53,26.25413246]
[1738887083206,30.42933246,191.61,191.53,26.25413246]
[1738887083509,31.4082266,191.61,191.54,26.25413246]
[1738887084613,26.25413246,191.6,191.52,26.25413246]
[1738887085420,26.25413246,191.58,191.5,26.25413246]
[1738887085612,27.23314906,191.57,191.49,26.25413246]
[1738887085812,26.25413246,191.57,191.5,26.25413246]
[1738887085986,27.60962149,191.59,191.51,26.25413246]
[1738887086180,26.25413246,191.58,191.51,26.25413246]
[1738887086408,0.37647,191.57,191.51,26.25413246]
[1738887086606,30.80660246,191.57,191.5,31.47593246]
[1738887086809,30.42983246,191.59,191.51,26.25413246]
[1738887086992,30.42983246,191.59,191.52,26.25413246]
[1738887087312,0.37647,191.6,191.53,26.25413246]
[1738887088009,26.63060246,191.6,191.53,26.25413246]
[1738887088723,26.63060246,191.62,191.54,26.25413246]
[1738887089008,6.021,191.63,191.57,26.25413246]
[1738887089583,10.1957,191.63,191.56,26.25413246]
[1738887089908,10.1957,191.63,191.57,26.25413246]
[1738887090428,0.12549,191.62,191.57,26.25413246]
[1738887091407,26.25413246,191.59,191.52,26.25413246]
[1738887091622,0.12549,191.57,191.51,26.28413246]
[1738887091789,0.12549,191.55,191.51,0.03]
[1738887092104,0.25098,191.56,191.51,26.28413246]
[1738887092286,0.12549,191.56,191.51,26.28413246]
[1738887092486,0.12549,191.56,191.51,0.03]
[1738887092994,26.25413246,191.59,191.52,26.25413246]
[1738887093188,0.25098,191.58,191.52,26.25413246]
[1738887093894,26.25413246,191.62,191.54,26.25413246]
[1738887094093,6.021,191.63,191.58,26.25413246]
[1738887094495,6.021,191.63,191.59,26.25413246]
[1738887094793,0.12549,191.62,191.57,26.25413246]
[1738887095409,0.12549,191.6,191.54,26.25413246]
[1738887095709,0.12549,191.58,191.52,31.47543246]
[1738887095890,0.12549,191.55,191.51,0.03]
[1738887096290,26.50511246,191.53,191.51,0.03]
[1738887096500,26.25413246,191.56,191.51,0.03]
[1738887096728,0.97920782,191.58,191.51,26.28413246]
[1738887096889,0.37647,191.57,191.51,26.28413246]
[1738887097090,0.37647,191.57,191.51,0.03]
[1738887097817,0.12549,191.57,191.51,26.28413246]
[1738887098027,26.25413246,191.6,191.53,26.25413246]
[1738887098207,0.37647,191.59,191.52,26.25413246]
[1738887098392,0.37647,191.59,191.53,26.25413246]
[1738887098393,0.25098,191.59,191.53,26.25413246]
[1738887099010,6.021,191.63,191.57,26.25413246]
[1738887099411,0.25098,191.62,191.57,26.25413246]
[1738887099998,6.021,191.63,191.57,26.25413246]
[1738887100197,6.021,191.63,191.6,26.25413246]
[1738887100391,1.5908,191.64,191.6,26.25413246]
[1738887100700,6.5445,191.67,191.62,26.25413246]
[1738887101094,6.5445,191.67,191.62,31.47273246]
[1738887101295,6.5445,191.67,191.62,26.25413246]
[1738887101696,6.5445,191.67,191.64,26.25413246]
[1738887101898,0.12549,191.68,191.64,26.25413246]
[1738887102114,0.12549,191.68,191.64,26.10423246]
[1738887102422,0.12549,191.68,191.63,26.25413246]
[1738887102806,0.12549,191.68,191.62,26.25413246]
[1738887103007,30.80430246,191.68,191.6,26.25413246]
[1738887103322,27.80923246,191.69,191.62,26.25413246]
[1738887103529,1.5551,191.69,191.63,26.25413246]
[1738887103825,0.12549,191.68,191.63,26.25413246]
[1738887105311,0.12549,191.68,191.62,31.47273246]
[1738887106409,1.5551,191.69,191.63,26.25413246]
[1738887107119,1.5551,191.69,191.64,26.25413246]
[1738887107327,0.063,191.71,191.65,26.25413246]
[1738887107617,26.31713246,191.71,191.64,26.25413246]
[1738887107803,26.25413246,191.7,191.62,26.25413246]
[1738887108000,26.25413246,191.7,191.63,26.25413246]
[1738887108201,4.236,191.71,191.63,26.25413246]
[1738887108202,30.49013246,191.71,191.63,26.25413246]
[1738887108716,26.31713246,191.71,191.64,26.25413246]
[1738887108919,30.49013246,191.71,191.63,31.47243246]
[1738887109919,26.25413246,191.66,191.59,31.47333246]
[1738887110222,26.25413246,191.64,191.57,26.25413246]
[1738887110418,26.25413246,191.62,191.55,26.25413246]
[1738887110618,0.37647,191.61,191.54,26.25413246]
[1738887110806,36.48823246,191.62,191.55,26.25413246]
[1738887111115,6.059,191.62,191.55,26.25413246]
[1738887111318,26.63060246,191.61,191.53,26.25413246]
[1738887111525,26.25413246,191.6,191.53,26.25413246]
[1738887111908,26.63060246,191.61,191.53,26.25413246]
[1738887112105,32.31313246,191.62,191.55,26.25413246]
[1738887112304,36.48813246,191.62,191.54,26.25413246]
[1738887112509,10.234,191.62,191.55,26.25413246]
[1738887112899,36.48813246,191.62,191.54,26.25413246]
[1738887114618,0.12549,191.61,191.55,0.03]
[1738887114826,0.12549,191.59,191.55,0.03]
[1738887115028,26.25413246,191.58,191.55,0.03]
[1738887115231,26.25413246,191.57,191.55,0.03]
[1738887116525,30.43013246,191.57,191.55,0.03]
[1738887117642,31.78581635,191.56,191.55,0.03]
[1738887117937,40.05401635,191.56,191.55,0.03]
[1738887118427,8.39369,191.56,191.55,0.03]
[1738887119009,38.82402246,191.56,191.55,0.03]
[1738887119619,40.05410638,191.56,191.55,0.03]
[1738887120023,39.80312638,191.56,191.55,0.03]
[1738887120832,39.07500246,191.56,191.55,0.03]
[1738887121709,12.82087,191.56,191.55,0.03]
[1738887122222,39.07500246,191.56,191.55,0.03]
[1738887122625,29.19802265,191.56,191.55,0.03]
[1738887128445,6.5955,191.61,191.55,0.03]
[1738887128812,6.5955,191.61,191.56,16.37715265]
[1738887130720,0.12549,191.61,191.56,16.37715265]
[1738887130915,20.67734265,191.63,191.56,16.37715265]
[1738887130916,0.12549,191.63,191.56,21.59725265]
[1738887131341,0.063,191.64,191.58,16.37715265]
[1738887131547,0.31398,191.64,191.58,16.37715265]
[1738887132054,0.25098,191.63,191.56,16.37715265]
[1738887132348,0.12549,191.62,191.56,16.37715265]
[1738887132549,0.12549,191.62,191.56,21.59735265]
[1738887133757,16.44015265,191.64,191.56,21.59735265]
[1738887134053,0.063,191.64,191.58,16.37715265]
[1738887135644,0.37647,191.63,191.56,21.59735265]
[1738887135948,4.55117,191.63,191.56,21.59735265]
[1738887137864,4.55117,191.63,191.56,16.37715265]
[1738887139354,4.55117,191.63,191.58,0.03]
[1738887139722,17.4187601,191.64,191.58,0.03]
[1738887139921,0.063,191.64,191.6,16.37715265]
[1738887141024,0.063,191.64,191.6,21.59615265]
[1738887141427,0.063,191.64,191.62,16.37715265]
[1738887141948,0.063,191.64,191.63,16.37715265]
[1738887143034,0.063,191.64,191.63,21.59545265]
[1738887144851,0.063,191.64,191.63,21.9822049]
[1738887145258,0.063,191.64,191.63,21.59545265]
[1738887145643,0.063,191.64,191.63,21.98207476]
[1738887146259,0.0001,191.64,191.63,21.98207476]
[1738887146437,0.0001,191.64,191.63,23.2569481]
[1738887146950,0.0001,191.64,191.63,22.87032599]
[1738887149261,0.0001,191.64,191.63,16.37715265]
[1738887149558,0.0001,191.64,191.58,16.40715265]
[1738887151266,0.0001,191.64,191.59,16.37715265]
[1738887151650,0.0001,191.64,191.63,16.37715265]
[1738887152366,0.0001,191.64,191.61,16.37715265]
[1738887152671,0.0001,191.64,191.62,16.37715265]
[1738887152848,0.0001,191.64,191.61,16.37715265]
[1738887152849,0.12559,191.64,191.61,16.37715265]
[1738887153043,0.0001,191.64,191.61,16.37715265]
[1738887153241,0.0001,191.64,191.61,21.59595265]
[1738887153450,0.0001,191.64,191.63,16.37715265]
[1738887155261,0.0001,191.64,191.63,21.59545265]
[1738887156070,0.0001,191.64,191.62,16.37715265]
[1738887156472,0.25098,191.63,191.58,16.40715265]
[1738887156646,0.12549,191.62,191.58,0.03]
[1738887157280,0.12549,191.63,191.58,16.40715265]
[1738887157453,0.0001,191.64,191.62,16.37715265]
[1738887158182,0.12559,191.64,191.59,16.37715265]
[1738887158357,0.25098,191.63,191.58,0.03]
[1738887158551,1.22969185,191.63,191.58,0.03]
[1738887158757,0.12549,191.61,191.58,0.03]
[1738887159059,16.37725265,191.64,191.58,0.03]
[1738887159252,17.35582066,191.64,191.58,0.03]
[1738887159567,0.37647,191.62,191.58,0.03]
[1738887160246,1.35525969,191.62,191.58,0.03]
[1738887160784,0.12549,191.6,191.58,0.03]
[1738887160951,0.0001,191.64,191.58,0.03]
[1738887161152,4.1746,191.64,191.58,0.03]
[1738887161378,0.37647,191.63,191.58,0.03]
[1738887161554,17.73238672,191.63,191.58,0.03]
[1738887162871,0.12549,191.61,191.58,0.03]
[1738887163455,16.62813265,191.59,191.58,0.03]
[1738887163679,16.75362265,191.59,191.58,0.03]
[1738887163979,30.16547118,191.59,191.58,0.03]
[1738887164175,16.75362265,191.59,191.58,0.03]
[1738887164685,0.37647,191.59,191.58,0.03]
[1738887166183,35.31989355,191.59,191.58,0.03]
[1738887167083,21.90804502,191.59,191.58,0.03]
[1738887167283,16.75362265,191.59,191.58,0.03]
[1738887167582,20.92912265,191.59,191.58,0.03]
[1738887167769,16.75362265,191.59,191.58,0.03]
[1738887167967,0.25098,191.59,191.58,0.03]
[1738887168170,0.12549,191.59,191.58,0.03]
[1738887169290,1.6487,191.65,191.58,16.40715265]
[1738887169475,1.6487,191.65,191.6,16.37715265]
[1738887169661,0.37657,191.64,191.59,16.37715265]
[1738887169862,0.12559,191.64,191.6,16.37715265]
[1738887170178,0.12559,191.64,191.61,16.37715265]
[1738887170578,0.0001,191.64,191.62,16.37715265]
[1738887170760,0.0001,191.64,191.63,16.37715265]
[1738887174289,0.0001,191.64,191.59,16.37715265]
[1738887174490,0.25098,191.63,191.58,0.03]
[1738887174690,0.12549,191.62,191.58,0.03]
[1738887175391,0.12549,191.61,191.58,0.03]
[1738887180694,16.37715265,191.63,191.58,0.03]
[1738887180870,0.0001,191.64,191.58,0.03]
[1738887181069,0.37657,191.64,191.58,0.03]
[1738887181300,0.97859927,191.63,191.58,0.03]
[1738887181476,0.12549,191.62,191.58,0.03]
[1738887181971,0.37647,191.6,191.58,0.03]
[1738887182979,4.55177,191.6,191.58,0.03]
[1738887183783,17.73250663,191.59,191.58,0.03]
[1738887184180,0.37647,191.58,191.55,0.03]
[1738887184496,30.16547118,191.56,191.55,0.03]
[1738887184877,31.16547118,191.56,191.55,0.03]
[1738887185078,35.34167118,191.56,191.55,0.03]
[1738887185677,16.75362265,191.56,191.55,0.03]
[1738887185880,20.92982265,191.56,191.55,0.03]
[1738887186188,66.32082191,191.56,191.55,0.03]
[1738887186590,21.90897338,191.56,191.55,0.03]
[1738887187073,4.55357,191.52,191.42,16.37715265]
[1738887187292,21.91006289,191.52,191.43,16.37715265]
[1738887187906,16.62813265,191.52,191.45,16.37715265]
[1738887188091,0.25098,191.52,191.47,16.37715265]
[1738887188289,16.37715265,191.56,191.48,16.37715265]
[1738887188495,0.37647,191.54,191.46,16.37715265]
[1738887188700,0.37647,191.52,191.46,16.37715265]
[1738887189189,4.55357,191.52,191.46,16.37715265]
[1738887189600,0.37647,191.52,191.45,16.37715265]
[1738887189808,0.37647,191.52,191.47,16.37715265]
[1738887190011,16.37715265,191.58,191.51,16.40715265]
[1738887190319,20.55295265,191.58,191.51,0.03]
[1738887191014,16.75362265,191.57,191.51,0.03]
[1738887191383,0.37647,191.57,191.51,0.03]
[1738887193211,0.12549,191.52,191.51,0.03]
[1738887193511,0.12549,191.53,191.51,0.03]
[1738887193823,0.37647,191.55,191.51,0.03]
[1738887196009,21.53176191,191.59,191.51,16.40715265]
[1738887196308,16.75362265,191.54,191.51,0.03]
[1738887197109,0.37647,191.54,191.51,0.03]
[1738887197485,0.12549,191.54,191.51,0.03]
[1738887197819,17.35626902,191.58,191.51,16.40715265]
[1738887197987,0.37647,191.57,191.51,0.03]
[1738887198189,0.12549,191.55,191.51,0.03]
[1738887200590,0.12549,191.55,191.51,16.40715265]
[1738887204213,17.35616355,191.62,191.53,16.37715265]
[1738887204417,4.1747,191.63,191.56,16.37715265]
[1738887204714,0.37647,191.6,191.51,5.2516]
[1738887204923,0.25098,191.57,191.51,5.2516]
[1738887205095,0.25098,191.57,191.52,16.37715265]
[1738887205295,0.12549,191.57,191.52,16.37715265]
[1738887205821,0.12549,191.58,191.52,16.37715265]
[1738887206122,0.12549,191.58,191.52,21.59845265]
[1738887208721,0.25098,191.59,191.52,21.59845265]
[1738887208916,16.37715265,191.62,191.56,16.37715265]
[1738887209224,0.0001,191.64,191.58,16.37715265]
[1738887210605,0.0001,191.64,191.58,21.59685265]
[1738887211832,0.0001,191.64,191.6,16.37715265]
[1738887212116,0.0001,191.64,191.59,16.37715265]
[1738887213224,0.0001,191.64,191.6,16.37715265]
[1738887218620,0.0001,191.64,191.6,10.4686146]
[1738887220726,0.12549,191.62,191.56,10.4686146]
[1738887220918,0.12549,191.62,191.54,10.4686146]
[1738887220919,0.25098,191.6,191.54,10.4686146]
[1738887221424,0.12549,191.55,191.51,0.03]
[1738887222515,0.12549,191.55,191.51,10.4986146]
[1738887222730,0.12549,191.57,191.51,10.4986146]
[1738887223523,0.12549,191.56,191.51,10.4986146]
[1738887224535,0.12549,191.56,191.53,10.4686146]
[1738887224899,0.37647,191.58,191.53,10.4686146]
[1738887225111,0.12549,191.58,191.53,10.4686146]
[1738887225330,0.12549,191.58,191.56,10.4686146]
[1738887225632,0.37647,191.6,191.55,10.4686146]
[1738887227012,4.55177,191.6,191.55,10.4686146]
[1738887227403,0.25098,191.6,191.55,10.4686146]
[1738887227604,0.0001,191.64,191.58,10.4686146]
[1738887227903,0.0001,191.64,191.59,10.4686146]
[1738887228299,0.37657,191.64,191.58,10.4686146]
[1738887228740,0.12559,191.64,191.61,10.4686146]
[1738887229035,0.0001,191.64,191.62,10.4686146]
[1738887229205,0.0001,191.64,191.61,10.4686146]
[1738887230631,0.0001,191.64,191.61,16.35470098]
[1738887232320,0.37647,191.63,191.56,16.35470098]
[1738887232635,0.12549,191.61,191.54,16.35470098]
[1738887232819,0.12549,191.58,191.52,16.35470098]
[1738887233008,0.12549,191.56,191.51,0.03]
[1738887233326,16.73117098,191.52,191.51,0.03]
[1738887233532,36.51261951,191.52,191.51,0.03]
[1738887234319,40.68971951,191.52,191.51,0.03]
[1738887234521,0.37647,191.49,191.39,29.4625832]
[1738887234712,0.12549,191.46,191.39,29.4625832]
[1738887235840,0.12549,191.46,191.39,24.2315832]
[1738887236345,0.12549,191.46,191.39,29.4563832]
[1738887237522,0.12549,191.46,191.39,21.57950098]
[1738887237919,0.12549,191.46,191.39,16.35470098]
[1738887239036,0.12549,191.44,191.39,16.35470098]
[1738887239223,0.12549,191.43,191.38,0.03]
[1738887239424,0.12549,191.41,191.38,0.03]
[1738887239720,0.12549,191.4,191.38,0.03]
[1738887240728,16.35470098,191.44,191.38,0.03]
[1738887240914,0.37647,191.42,191.38,0.03]
[1738887241231,0.12549,191.39,191.38,0.03]
[1738887242433,0.25098,191.39,191.38,0.03]
[1738887246347,17.33453218,191.45,191.38,16.38470098]
[1738887246526,4.1786,191.46,191.4,16.35470098]
[1738887246721,0.37647,191.45,191.4,16.35470098]
[1738887246932,0.37647,191.45,191.38,16.38470098]
[1738887247526,4.55507,191.45,191.39,16.35470098]
[1738887247928,0.37647,191.45,191.39,16.35470098]
[1738887249919,0.063,191.51,191.44,16.35470098]
[1738887250118,0.25098,191.46,191.4,16.35470098]
[1738887250319,0.25098,191.46,191.39,21.57960098]
[1738887250548,0.25098,191.46,191.4,16.35470098]
[1738887251049,0.12549,191.46,191.4,16.35470098]
[1738887251743,0.37647,191.42,191.38,0.03]
[1738887252042,16.73117098,191.39,191.38,0.03]
[1738887253326,20.91107098,191.39,191.38,0.03]
[1738887254238,64.32291951,191.39,191.38,0.03]
[1738887254540,0.37647,191.39,191.38,0.03]
[1738887256131,4.55637,191.39,191.38,0.03]
[1738887256842,35.30287894,191.39,191.38,0.03]
[1738887257943,65.30287894,191.39,191.38,0.03]
[1738887258339,35.30287894,191.39,191.38,0.03]
[1738887258529,65.30287894,191.39,191.38,0.03]
[1738887258733,35.30287894,191.39,191.38,0.03]
[1738887259232,65.30287894,191.39,191.38,0.03]
[1738887260040,60.14301951,191.37,191.36,0.0001]
[1738887260347,14.78831853,191.36,191.35,0.03]
[1738887260538,30.14301951,191.36,191.35,0.03]
[1738887260926,31.14301951,191.36,191.35,0.03]
[1738887261343,30.14301951,191.36,191.35,0.03]
[1738887261544,34.32361951,191.36,191.35,0.03]
[1738887262333,35.303843,191.36,191.35,0.03]
[1738887264461,35.303843,191.36,191.18,5.2606]
[1738887264462,13.78831853,191.29,191.18,5.2606]
[1738887264639,4.36,191.3,191.2,16.35470098]
[1738887264829,0.98043708,191.33,191.21,20.0]
[1738887265035,0.37647,191.32,191.21,20.0]
[1738887265743,16.35470098,191.31,191.24,16.35470098]
[1738887265940,0.12549,191.29,191.24,21.58370098]
[1738887266139,16.35470098,191.34,191.27,16.35470098]
[1738887266370,16.35470098,191.37,191.3,16.35470098]
[1738887266669,0.37647,191.33,191.27,16.35470098]
[1738887266960,0.37647,191.31,191.24,5.229]
[1738887267371,16.73117098,191.31,191.24,21.58370098]
[1738887267862,0.37647,191.31,191.26,21.58310098]
[1738887268450,0.37647,191.31,191.26,5.2284]
[1738887270067,0.37647,191.31,191.3,0.03]
[1738887271063,40.4509,191.37,191.3,0.03]
[1738887271064,26.87250098,191.39,191.3,16.38470098]
[1738887271239,16.35470098,191.4,191.33,16.35470098]
[1738887271437,0.12549,191.36,191.3,16.38470098]
[1738887271640,0.12549,191.36,191.3,0.03]
[1738887272471,0.12549,191.36,191.32,16.35470098]
[1738887272962,13.41184853,191.41,191.3,0.03]
[1738887272963,23.85254669,191.44,191.35,16.35470098]
[1738887273167,23.85254669,191.44,191.36,16.35470098]
[1738887273371,0.37647,191.42,191.35,16.35470098]
[1738887274070,0.37647,191.42,191.37,16.35470098]
[1738887275268,20.91037098,191.42,191.35,5.2258]
[1738887276276,0.12549,191.39,191.34,16.35470098]
[1738887276573,0.12549,191.39,191.33,5.2264]
[1738887277468,0.12549,191.39,191.35,16.35470098]
[1738887278452,0.12549,191.4,191.35,16.35470098]
[1738887278773,0.12549,191.4,191.34,21.58090098]
[1738887279374,0.12549,191.4,191.35,16.35470098]
[1738887279554,0.12549,191.4,191.34,21.58090098]
[1738887279877,0.12549,191.4,191.34,5.2262]
[1738887281178,0.12549,191.4,191.3,23.11740098]
[1738887281179,0.25098,191.37,191.3,23.11740098]
[1738887281481,0.12549,191.34,191.3,0.03]
[1738887281777,4.1798,191.4,191.33,16.35470098]
[1738887281953,4.1798,191.4,191.34,16.35470098]
[1738887282464,0.37647,191.39,191.34,16.35470098]
[1738887283056,0.063,191.35,191.34,16.35470098]
[1738887283260,0.063,191.35,191.33,16.35470098]
[1738887286074,0.063,191.35,191.32,21.58140098]
[1738887286877,0.063,191.35,191.32,5.2267]
[1738887287378,0.063,191.35,191.34,16.35470098]
[1738887289670,0.063,191.35,191.32,16.35470098]
[1738887290783,0.063,191.35,191.34,16.35470098]
[1738887291684,0.063,191.35,191.34,21.58090098]
[1738887292881,0.063,191.35,191.33,16.35470098]
[1738887293470,0.063,191.35,191.34,16.35470098]
[1738887295760,0.063,191.35,191.34,21.58090098]
[1738887296475,10.6968,191.44,191.38,16.35470098]
[1738887296673,0.37647,191.41,191.34,21.58090098]
[1738887297067,0.12549,191.39,191.33,5.2265]
[1738887297267,0.37647,191.39,191.33,5.2265]
[1738887298903,0.37647,191.39,191.32,16.35470098]
[1738887299070,4.55637,191.39,191.32,21.58150098]
[1738887300391,0.37647,191.39,191.34,16.35470098]
[1738887301396,0.37647,191.39,191.32,5.2268]
[1738887301397,5.53618759,191.39,191.31,0.03]
[1738887301703,4.55637,191.39,191.32,16.35470098]
[1738887302596,0.12549,191.39,191.34,16.35470098]
[1738887302771,82.1,191.41,191.36,16.35470098]
[1738887302976,0.12549,191.4,191.36,16.35470098]
[1738887303372,82.1,191.41,191.38,16.35470098]
[1738887303572,0.25098,191.42,191.38,16.35470098]
[1738887303935,4.30499,191.41,191.38,16.35470098]
[1738887304199,13.53733853,191.37,191.31,0.03]
[1738887304376,0.12549,191.34,191.31,0.03]
[1738887304568,0.12549,191.32,191.31,0.03]
[1738887304799,16.73117098,191.32,191.31,0.03]
[1738887304969,17.71137006,191.32,191.31,0.03]
[1738887305591,16.73117098,191.32,191.31,0.03]
[1738887305873,13.78831853,191.32,191.31,0.03]
[1738887306092,31.12330087,191.32,191.31,0.03]
[1738887306591,35.30470087,191.32,191.31,0.03]
[1738887308781,0.37647,191.32,191.31,0.03]
[1738887309180,7.30297932,191.34,191.31,0.03]
[1738887309379,31.5525,191.39,191.33,16.35470098]
[1738887309380,8.1921,191.39,191.33,16.35470098]
[1738887309787,13.78831853,191.38,191.33,16.35470098]
[1738887309988,8.1921,191.39,191.35,16.35470098]
[1738887310206,6.6396,191.39,191.36,16.35470098]
[1738887310407,0.063,191.4,191.36,16.35470098]
[1738887310993,0.12549,191.37,191.32,16.35470098]
[1738887311194,0.12549,191.37,191.31,16.38470098]
[1738887311498,16.73117098,191.35,191.31,0.03]
[1738887311707,0.37647,191.35,191.31,0.03]